Cogmind - Beta 10.2 @@@ ROGUE MODE // 2021.06.22 @ 16:56:30 Player: cavemonk Result: Destroyed by G-50 Soldier with Heavy Laser Performance ------------- Evolutions (3) 1500 Regions Visited (10) 2000 Robots Destroyed (95) 475 Value Destroyed (3271) 3271 Prototype IDs (240) 4800 Alien Tech Used (0) 0 Bonus (4137) 4137 TOTAL SCORE: 16183 Bonus ------- High Alert Combat Kills 537 Aligned with FarCom 300 Met Data Miner 300 Used Data Conduit 3000 Cogmind --------- Core Integrity 0/700 Matter 76/300 Energy 95/100 System Corruption 11% Temperature Cool (18) Movement Flying (35) Location -6/Proximity Caves Parts ------- > --- POWER (1) -------- (None) > --- PROPULSION (5) --- Improved VTOL Module > --- UTILITY (4) ------ Layered Light Armor Plating > --- WEAPON (3) ------- Spear > --- INVENTORY (4) ---- Layered Light Armor Plating System Mapper Deep Network Scanner Peak State ------------ > --- POWER ------------ Reinforced Deuterium Engine > --- PROPULSION ------- Armored Treads Armored Huge Wheel Improved Antigrav System Improved Antigrav System > --- UTILITY ---------- Large Storage Unit High-capacity Storage Unit Long-range Sensor Array Advanced Signal Interpreter > --- WEAPON ----------- Cooled Particle Cannon Longsword +1 Spear > --- INVENTORY -------- Light Angular Momentum Engine Improved VTOL Module Improved VTOL Module Coolant Injector Large Storage Unit Advanced Sensor Array Advanced Signal Interpreter Layered Light Armor Plating Layered Light Armor Plating Layered Light Armor Plating Layered Light Armor Plating Remote Force Field Improved Field Recycling Unit Advanced EMP Blaster Proton Missile Launcher Heavy Rocket Launcher Greatsword [Rating: 62] Favorites ----------- Power Improved Deuterium Engine Engine Improved Deuterium Engine Propulsion Light Treads Treads Light Treads Leg Aluminum Leg Wheel Armored Huge Wheel Hover Unit Improved Antigrav System Flight Unit Improved VTOL Module Utility Large Storage Unit Device Long-range Sensor Array Storage Large Storage Unit Processor Advanced Signal Interpreter Protection Layered Light Armor Plating Weapon AWS/Thermal Energy Gun AWS/Thermal Energy Cannon Cooled Particle Cannon Ballistic Gun Light Assault Rifle Launcher Advanced EMP Blaster Slashing Weapon Longsword +1 Piercing Weapon Spear Build | -11 -10 -10 -10 -9 -8 -7 -7 -7 -7 -6 ------- Run | Scr Mat Min Exi Min Mat Fac Low Low Dat Pro Slots Evolved 6 | . . . . . 4 2 . . . . Power . | . . . . . . . . . . . Propulsion 3 | . . . . . 1 2 . . . . Utility 2 | . . . . . 2 . . . . . Weapon 1 | . . . . . 1 . . . . . Parts Attached 126 | 3 1 2 1 3 26 60 17 1 8 4 Power 6 | . . . . . 1 3 1 . . 1 Engine 6 | . . . . . 1 3 1 . . 1 Core . | . . . . . . . . . . . Reactor . | . . . . . . . . . . . Propulsion 28 | 2 . 2 . 3 7 8 4 . 2 . Treads 19 | 1 . 1 . 2 6 5 4 . . . Leg . | . . . . . . . . . . . Wheel 4 | 1 . 1 . 1 . 1 . . . . Hover 2 | . . . . . . 2 . . . . Flight 3 | . . . . . 1 . . . 2 . Utility 40 | 1 1 . . . 5 26 2 . 4 1 Device 17 | 1 . . . . 1 13 1 . 1 . Storage 4 | . 1 . . . 1 2 . . . . Processor 4 | . . . . . 1 3 . . . . Hackware . | . . . . . . . . . . . Protection 15 | . . . . . 2 8 1 . 3 1 Artifact . | . . . . . . . . . . . Weapon 52 | . . . 1 . 13 23 10 1 2 2 Energy Gun 9 | . . . 1 . 7 1 . . . . Energy Cannon 9 | . . . . . . 7 2 . . . Ballistic Gun 5 | . . . . . . 5 . . . . Ballistic Cannon . | . . . . . . . . . . . Launcher 12 | . . . . . . 7 4 1 . . Special Weapon . | . . . . . . . . . . . Impact Weapon . | . . . . . . . . . . . Slashing Weapon 12 | . . . . . 6 2 2 . 1 1 Piercing Weapon 5 | . . . . . . 1 2 . 1 1 Special Melee Weapon . | . . . . . . . . . . . Unidentified Prototypes 5 | . . . . . 2 3 . . . . Parts Lost 13 | . . . . . . 6 1 2 . 4 Power 1 | . . . . . . . . . . 1 Propulsion 3 | . . . . . . 2 . . . 1 Utility 3 | . . . . . . 1 . 1 . 1 Weapon 6 | . . . . . . 3 1 1 . 1 Highest Loss Streak 4 | . . . . . . 4 1 1 . 4 Average Slot Usage (%) 89 | . 100 100 92 85 88 93 91 89 28 35 Engine 8 | . 14 14 14 14 9 7 7 7 . 1 Treads 23 | . 14 14 14 16 26 33 13 21 . . Wheel 4 | . 14 13 14 11 . 1 7 7 . . Hover 1 | . . . . . . 1 8 . . . Device 7 | . 14 14 14 14 2 5 6 6 4 4 Storage 14 | . 14 14 14 14 17 15 15 15 . . Processor 4 | . . . . . 4 6 7 7 . . Protection 2 | . . . . . 10 1 . . 2 8 Energy Gun 6 | . 14 14 14 14 14 4 . . . . Energy Cannon 2 | . . . . . . 6 1 . . . Ballistic Gun 1 | . 14 14 6 . . 1 . . . . Launcher 3 | . . . . . . . 16 15 . . Slashing Weapon 2 | . . . . . 3 2 3 5 . 1 Piercing Weapon 1 | . . . . . . 2 . . 7 4 Naked Turns 1 | . . . . . . . . . 1 . Heaviest Build 89 | 13 25 25 30 30 62 89 87 81 11 11 Greatest Support 110 | 20 10 40 10 40 60 110 90 60 12 12 Greatest Overweight (x) 4 | 1 2 2 2 2 1 3 4 2 . 1 Average Overweight (x) 1 | . 1 1 2 1 . . 2 1 . . Largest Inventory Capacity 24 | 6 10 10 10 10 16 24 18 18 4 4 Average Capacity 15 | 6 9 10 10 10 15 18 18 18 4 4 Most Carried 19 | 6 5 9 10 10 16 19 18 18 4 4 Average Carried 14 | 5 4 5 8 9 15 17 17 17 3 3 Final Capacity 18 | 6 10 10 10 10 16 18 18 18 4 4 Final Carried 18 | 4 4 9 7 10 16 18 18 15 4 3 Class Distribution -------------------- 44% | Mutant 33% | Skirmisher 11% | Scavenger-Mutant 3% | Tank Dominant Class ---------------- Mutant | -10/Materials Mutant | -10/Mines Mutant | -10/Exiles Skirmisher | -9/Mines Skirmisher | -8/Materials Mutant | -7/Factory Mutant | -7/Lower Caves Scavenger-Mutant | -7/Lower Caves Mutant | -7/Data Miner Mutant | -6/Proximity Caves Resources | -11 -10 -10 -10 -9 -8 -7 -7 -7 -7 -6 ----------- Run | Scr Mat Min Exi Min Mat Fac Low Low Dat Pro Matter Collected 2073 | 247 . 45 11 30 250 741 603 20 21 105 Remotely 89 | . . . . . . 89 . . . . Salvage Created 4020 | 158 . 210 . 53 874 1898 613 60 21 133 Parts 210 | 12 . 14 . . 41 104 31 3 4 1 Haulers Intercepted 2 | . . . . . . 2 . . . . Recyclers Shooed 1 | . . . . . 1 . . . . . Parts Field Recycled . | . . . . . . . . . . . Retrieved Matter . | . . . . . . . . . . . Parts Self-Destructed 10 | . . . . . . . 7 3 . . Prevented 24 | . . . . . . . 24 . . . Kills | -11 -10 -10 -10 -9 -8 -7 -7 -7 -7 -6 ------- Run | Scr Mat Min Exi Min Mat Fac Low Low Dat Pro Combat Hostiles Destroyed 60 | . . 2 . 4 11 30 10 3 . . Melee 9 | . . . . . 2 5 1 1 . . Guns 30 | . . 1 . 4 9 16 . . . . Cannons 7 | . . . . . . 7 . . . . AOE 10 | . . 1 . . . 2 5 2 . . Classes Destroyed 19 | 2 . 2 . 1 4 6 3 1 . . Worker 11 | . . 2 . . . 9 . . . . Builder 1 | . . . . . . 1 . . . . Tunneler 6 | 5 . . . . . 1 . . . . Hauler 2 | . . . . . . 2 . . . . Recycler 6 | 1 . 1 . . 2 2 . . . . Minesweeper 2 | . . . . . . . 1 . . 1 Watcher 10 | . . . . . 5 5 . . . . Swarmer 5 | . . . . . . 4 1 . . . Grunt 25 | . . 2 . . 5 12 5 1 . . Brawler 5 | . . . . . 1 4 . . . . Duelist 2 | . . . . . . 2 . . . . Protector 1 | . . . . . . 1 . . . . Sentry 7 | . . . . . 4 2 1 . . . Specialist 1 | . . . . . . . 1 . . . Hunter 4 | . . . . . 1 2 1 . . . Programmer 3 | . . . . . . 3 . . . . Behemoth 1 | . . . . . . . 1 . . . Decomposer 3 | . . . . . . . . . . 3 Packrat 1 | . . . . . . . . . . 1 Master Thief 2 | . . . . . . . . 2 . . Assembled 4 | . . . . 4 . . . . . . Best Kill Streak 14 | 4 . 3 . 2 4 14 2 2 1 1 Combat Bots Only 8 | . . 2 . 2 3 8 2 2 . . Max Kills in Single Turn 10 | 1 . 2 . 1 1 10 2 1 1 1 Gunslinging . | . . . . . . . . . . . Exploded 2 | . . 1 . . . 1 2 1 . . Melee 1 | . . . . . 1 1 1 1 . . Uniques/NPCs Destroyed 1 | . . . . . . . . . 1 . Data Miner (-7/Data Miner) Combat | -11 -10 -10 -10 -9 -8 -7 -7 -7 -7 -6 -------- Run | Scr Mat Min Exi Min Mat Fac Low Low Dat Pro Damage Taken 3543 | . . 203 . 46 82 1300 599 717 139 457 Core 738 | . . . . . 33 58 118 311 46 172 Absorbed by Shields . | . . . . . . . . . . . Core Remaining (%) 98 | 100 . . . 100 94 . . . . . Volleys Fired 142 | 17 . 16 . . 3 59 28 19 . . Largest 3 | 2 . 2 . . 1 3 2 2 . . Hottest 270 | 60 . 60 . . 69 270 75 75 . . Shots Fired 340 | 34 . 32 . 6 36 159 52 21 . . Gun 204 | 34 . 32 . 6 36 96 . . . . Cannon 58 | . . . . . . 58 . . . . Launcher 78 | . . . . . . 5 52 21 . . Special . | . . . . . . . . . . . Kinetic 48 | 17 . 16 . . . 15 . . . . Thermal 181 | . . . . 6 36 139 . . . . Explosive 24 | . . . . . . 3 6 15 . . Electromagnetic 87 | 17 . 16 . . . 2 46 6 . . Robot Hit Streak 27 | 9 . 9 . 2 27 15 6 1 . . Robot Miss Streak 5 | 2 . 2 . 3 1 5 1 4 . . Penetration Max . | . . . . . . . . . . . Secondary Targets . | . . . . . . . . . . . Autonomous 120 | . . . . 6 33 81 . . . . Shots Hit Robots 266 | 21 . 24 . 3 40 152 10 7 1 8 Core Hits 154 | 10 . 10 . 4 22 77 17 10 1 3 Critical Hits 4 | 1 . . . . . 1 . . . 2 Critical Kills 2 | . . . . . . 1 . . . 1 Critical Parts Destroyed 2 | 1 . . . . . . . . . 1 Melee Attacks 72 | . . . . . 11 38 5 3 5 10 Impact . | . . . . . . . . . . . Slashing 59 | . . . . . 11 35 5 3 . 5 Piercing 13 | . . . . . . 3 . . 5 5 Sneak Attacks 12 | . . . . . 1 4 1 . 1 5 Combat Hostiles . | . . . . . . . . . . . Follow-up Attacks . | . . . . . . . . . . . Damage Inflicted 11870 | 259 . 350 . 170 1373 6641 1189 1081 79 728 Guns 3861 | 226 . 208 . 155 924 2348 . . . . Cannons 1561 | . . . . . . 1561 . . . . Explosions 3480 | 33 . 142 . . . 1440 918 947 . . Melee 2894 | . . . . . 416 1266 271 134 79 728 Ramming 74 | . . . . 15 33 26 . . . . Kinetic 341 | 64 . 67 . . . 210 . . . . Thermal 6219 | 33 . 142 . 155 924 4965 . . . . Explosive 1091 | . . . . . . 143 69 879 . . Electromagnetic 1251 | 162 . 141 . . . 31 849 68 . . Impact . | . . . . . . . . . . . Slashing 2438 | . . . . . 416 1266 271 134 . 351 Piercing 456 | . . . . . . . . . 79 377 Highest Corruption 11 | . . . . . 4 7 9 9 9 11 Average Corruption 7 | . . . . . 3 6 7 9 9 9 Corruption Purged . | . . . . . . . . . . . Effects 121 | . . . . . 6 31 56 13 5 10 Message Errors 27 | . . . . . 3 8 9 3 1 3 Matter Fused 25 | . . . . . . 9 12 1 2 1 Heat Flow Errors 17 | . . . . . 1 3 9 3 . 1 Energy Discharges 14 | . . . . . 1 3 6 2 1 1 Parts Rejected 1 | . . . . . . 1 . . . . Data Loss (minor) 10 | . . . . . 1 1 8 . . . Data Loss (major) 7 | . . . . . . 4 2 1 . . Misfires 3 | . . . . . . . 3 . . . Misdirections 1 | . . . . . . . . . . 1 Targeting Errors 15 | . . . . . . 2 6 3 1 3 Weapon Failures 1 | . . . . . . . 1 . . . Overload Shots 23 | . . . . . . 23 . . . . Effects 4 | . . . . . . 4 . . . . Meltdown 4 | . . . . . . 4 . . . . Overflow Damage 1158 | 23 . . . . 109 692 84 76 . 174 Projectiles 110 | . . . . . . 110 . . . . Explosions 369 | 23 . . . . . 270 . 76 . . Melee 679 | . . . . . 109 312 84 . . 174 Knockbacks . | . . . . . . . . . . . Impact . | . . . . . . . . . . . Kinetic . | . . . . . . . . . . . Secondary . | . . . . . . . . . . . Self-Inflicted Damage 743 | . . 45 . . . 17 188 493 . . Shots 23 | . . 1 . . . 1 10 11 . . Rammed 7 | . . . . 1 4 2 . . . . Targets Rammed 10 | . . . . 1 5 4 . . . . Kicked . | . . . . . . . . . . . Crushed 3 | . . . . . 1 2 . . . . Highest Temperature 378 | 40 . 159 . . 111 378 272 263 . 332 Average Temperature 81 | 18 . 67 . . 35 113 66 114 . 149 Received Heat Transfer 504 | . . 96 . . 27 273 45 9 18 36 Effects 1 | . . . . . . . . . . 1 Energy Bleed 1 | . . . . . . . . . . 1 Siege Activations . | . . . . . . . . . . . Robots Corrupted 4 | . . . . . . . 4 . . . Combat Hostiles 4 | . . . . . . . 4 . . . Parts Fried 9 | 1 . . . . . . 8 . . . Impact Corruptions . | . . . . . . . . . . . Robots Melted . | . . . . . . . . . . . Combat Hostiles . | . . . . . . . . . . . Parts Melted 12 | . . . . . 2 10 . . . . Heat Transferred 6772 | 50 . 150 . 185 1184 5203 . . . . Parts Sabotaged . | . . . . . . . . . . . Parts Stolen 4 | . . . . . . . . 4 . . Parts Stripped . | . . . . . . . . . . . Power Chain Reactions 2 | 1 . 1 . . . . . . . . Missiles Intercepted . | . . . . . . . . . . . Alert | -11 -10 -10 -10 -9 -8 -7 -7 -7 -7 -6 ------- Run | Scr Mat Min Exi Min Mat Fac Low Low Dat Pro Peak Influence 981 | 30 19 79 . 15 216 981 . . . . Initial 19 | . 19 7 . . 5 3 . . . . Average 264 | 17 19 21 . 1 53 507 . . . . Maximum Alert Level 3 | . . . . . 1 3 . . . . Low Security (%) 69 | 100 100 100 . 100 99 38 . . . . Level 1 . | . . . . . . . . . . . Level 2 10 | . . . . . . 21 . . . . Level 3 19 | . . . . . . 39 . . . . Level 4 . | . . . . . . . . . . . Level 5 . | . . . . . . . . . . . High Security . | . . . . . . . . . . . Max Security . | . . . . . . . . . . . Squads Dispatched 13 | . 1 . . . . 12 . . . . Investigation 4 | . 1 . . . . 3 . . . . Extermination 4 | . . . . . . 4 . . . . Reinforcement 2 | . . . . . . 2 . . . . Assault 3 | . . . . . . 3 . . . . Garrison . | . . . . . . . . . . . Intercept . | . . . . . . . . . . . Construction Impeded . | . . . . . . . . . . . Haulers Reinforced 2 | . . . . . . 2 . . . . Stealth | -11 -10 -10 -10 -9 -8 -7 -7 -7 -7 -6 --------- Run | Scr Mat Min Exi Min Mat Fac Low Low Dat Pro Distress Signals 6 | . . . . . 4 2 . . . . Communications Jammed . | . . . . . . . . . . . Distress Signals . | . . . . . . . . . . . Times Spotted 115 | . 3 2 . 4 19 54 16 6 4 7 Peak Tracking Total 10 | . 3 2 . 2 5 10 3 5 4 7 Tactical Retreats 18 | . . . . . 2 2 14 . . . Traps | -11 -10 -10 -10 -9 -8 -7 -7 -7 -7 -6 ------- Run | Scr Mat Min Exi Min Mat Fac Low Low Dat Pro Traps Triggered 9 | . 1 . . . 2 4 . 1 . 1 Indirectly 3 | . . . . . . 2 . 1 . . Trap Hack Attempts . | . . . . . . . . . . . Triggered . | . . . . . . . . . . . Disarmed . | . . . . . . . . . . . Reprogrammed . | . . . . . . . . . . . Reused 1 | . . . . . . . 1 . . . Traps Extracted . | . . . . . . . . . . . Installed 23 | . . . 4 . . . 9 . . 10 Triggered 5 | . . . . . . . 5 . . . Machines | -11 -10 -10 -10 -9 -8 -7 -7 -7 -7 -6 ---------- Run | Scr Mat Min Exi Min Mat Fac Low Low Dat Pro Machines Disabled 26 | . . . . . . 25 1 . . . Max in Single Turn 18 | . . . . . . 18 1 . . . Machines Sabotaged . | . . . . . . . . . . . Garrisons Compromised . | . . . . . . . . . . . Overloaded Fab Kills . | . . . . . . . . . . . Fab Network Shutdowns . | . . . . . . . . . . . Hacking | -11 -10 -10 -10 -9 -8 -7 -7 -7 -7 -6 --------- Run | Scr Mat Min Exi Min Mat Fac Low Low Dat Pro Machines Accessed 32 | . 1 1 1 . 9 16 . . 4 . Terminals 16 | . 1 1 . . 5 9 . . . . Fabricators 6 | . . . . . . 6 . . . . Repair Stations 1 | . . . . . 1 . . . . . Recycling Units 1 | . . . . . 1 . . . . . Scanalyzers 3 | . . . . . 2 1 . . . . Garrison Access . | . . . . . . . . . . . Total Hacks 89 | . 2 4 1 . 24 31 . . 27 . Successful 56 | . . 2 1 . 14 12 . . 27 . Failed 33 | . 2 2 . . 10 19 . . . . Catastrophic 6 | . . . . . 1 5 . . . . Database Lockouts . | . . . . . . . . . . . Manual 25 | . 2 4 1 . 11 7 . . . . Terminals 33 | . 2 4 . . 13 14 . . . . Fabricators 14 | . . . . . . 14 . . . . Repair Stations 3 | . . . . . 3 . . . . . Recycling Units 2 | . . . . . 2 . . . . . Scanalyzers 9 | . . . . . 6 3 . . . . Garrison Access . | . . . . . . . . . . . Terminal Hacks 37 | . . 2 1 . 5 2 . . 27 . Record 11 | . . . . . . . . . 11 . Part Schematic 6 | . . . . . . . . . 6 . Robot Schematic 7 | . . . . . . . . . 7 . Prototype ID Bank 5 | . . 2 . . . . . . 3 . Level Access Points 1 | . . . . . 1 . . . . . Terminal Index 1 | . . . . . 1 . . . . . Fabricator Index 1 | . . . . . . 1 . . . . Alert Level 1 | . . . . . . 1 . . . . Hauler Manifests 1 | . . . . . 1 . . . . . Zone Layout 2 | . . . . . 2 . . . . . EX-Prototype ID Bank 1 | . . . 1 . . . . . . . Fabricator Hacks 5 | . . . . . . 5 . . . . Load Schematic 3 | . . . . . . 3 . . . . Build 2 | . . . . . . 2 . . . . Repair Station Hacks 1 | . . . . . 1 . . . . . Scan Component 1 | . . . . . 1 . . . . . Recycling Unit Hacks . | . . . . . . . . . . . Scanalyzer 8 | . . . . . 6 2 . . . . Insert Component 4 | . . . . . 3 1 . . . . Analyze 4 | . . . . . 3 1 . . . . Garrison Access Hacks . | . . . . . . . . . . . Unauthorized Hacks 5 | . . . . . 2 3 . . . . Terminals 3 | . . . . . 1 2 . . . . Assimilate 1 | . . . . . . 1 . . . . Botnet 1 | . . . . . . 1 . . . . Operators 1 | . . . . . 1 . . . . . Fabricators 1 | . . . . . . 1 . . . . Report 1 | . . . . . . 1 . . . . Repair Stations . | . . . . . . . . . . . Recycling Units 1 | . . . . . 1 . . . . . Recyclers 1 | . . . . . 1 . . . . . Scanalyzers . | . . . . . . . . . . . Garrison Access . | . . . . . . . . . . . Data Cores Recovered . | . . . . . . . . . . . Used . | . . . . . . . . . . . Hacking Detections 25 | . 1 1 . . 8 15 . . . . Full Trace Events 3 | . 1 . . . . 2 . . . . Feedback Events . | . . . . . . . . . . . Feedback Blocked . | . . . . . . . . . . . Robot Schematics Acquired 7 | . . . . . . . . . 7 . Robots Built . | . . . . . . . . . . . Matter . | . . . . . . . . . . . Time . | . . . . . . . . . . . Total Robot Build Rating . | . . . . . . . . . . . Part Schematics Acquired 10 | . . . . . 3 1 . . 6 . Parts Built 3 | . . . . . . 3 . . . . Matter 453 | . . . . . . 453 . . . . Time 116 | . . . . . . 116 . . . . Total Part Build Rating 17 | . . . . . . 17 . . . . Parts Repaired . | . . . . . . . . . . . Time . | . . . . . . . . . . . Parts Recycled . | . . . . . . . . . . . Recycled Matter . | . . . . . . . . . . . Retrieved Matter . | . . . . . . . . . . . Retrieved Components . | . . . . . . . . . . . Parts Scanalyzed 4 | . . . . . 3 1 . . . . Part Schematics Acquired 4 | . . . . . 3 1 . . . . Parts Damaged . | . . . . . . . . . . . Bothacking | -11 -10 -10 -10 -9 -8 -7 -7 -7 -7 -6 ------------ Run | Scr Mat Min Exi Min Mat Fac Low Low Dat Pro Used RIF Installer . | . . . . . . . . . . . Robots Hacked . | . . . . . . . . . . . Non-combat . | . . . . . . . . . . . Combat . | . . . . . . . . . . . Robot Hacks Applied . | . . . . . . . . . . . Relay Couplers Released . | . . . . . . . . . . . Robots Rewired . | . . . . . . . . . . . Allies Hacked . | . . . . . . . . . . . Hacks Repelled . | . . . . . . . . . . . Allies | -11 -10 -10 -10 -9 -8 -7 -7 -7 -7 -6 -------- Run | Scr Mat Min Exi Min Mat Fac Low Low Dat Pro Total Allies 1 | . . . . . . 1 . . . . Largest Group 1 | . . . . . . 1 . . . . Highest-Rated Group 10 | . . . . . . 10 . . . . Highest-Rated Ally 10 | . . . . . . 10 . . . . Total Orders . | . . . . . . . . . . . Ally Attacks . | . . . . . . . . . . . Total Damage . | . . . . . . . . . . . Kills . | . . . . . . . . . . . Allies Corrupted . | . . . . . . . . . . . Allies Melted . | . . . . . . . . . . . Intel | -11 -10 -10 -10 -9 -8 -7 -7 -7 -7 -6 ------- Run | Scr Mat Min Exi Min Mat Fac Low Low Dat Pro Robot Analysis Total 115 | . . . . . . . . . 115 . Derelict Logs Recovered 8 | . . 1 . 3 . . 2 2 . . Drone Launches . | . . . . . . . . . . . Drone Recoveries . | . . . . . . . . . . . Exploration | -11 -10 -10 -10 -9 -8 -7 -7 -7 -7 -6 ------------- Run | Scr Mat Min Exi Min Mat Fac Low Low Dat Pro Turns Passed 8824 | 127 111 618 270 1013 1337 3112 1546 402 107 181 Spaces Moved 5757 | 42 112 560 260 885 666 1620 923 281 140 268 Core 23 | . . . . . . . . . 23 . Treads 2309 | . . 2 . 108 666 1287 224 22 . . Legs 15 | 15 . . . . . . . . . . Wheels 3025 | 27 112 558 260 777 . 333 699 259 . . Hover . | . . . . . . . . . . . Flight 385 | . . . . . . . . . 117 268 Fastest Speed 32 | 90 90 100 100 100 160 120 120 120 32 32 Average Speed 126 | 100 98 100 100 107 167 151 136 124 36 50 Slowest Speed 250 | 120 100 160 100 180 183 178 250 180 50 105 Overloaded Moves . | . . . . . . . . . . . Propulsion Burnouts . | . . . . . . . . . . . Robots Hopped 1 | . . . . . . . . . 1 . Cave-ins Triggered 1 | . . . . . . . . 1 . . Exploration Rate (%) 53 | 4 27 97 60 95 36 44 69 50 77 29 Regions Visited 10 Branch Regions 7 Pre-discovered Areas 27 | . . . . 1 . . . 1 25 . Known Exits Taken 4 | . . . . . 1 1 1 1 . . Unknown Exits Taken 6 | 1 1 1 1 1 . . . . 1 . Scrap Searched 9 | . . 1 . 2 . . 3 3 . . Spaces Dug 96 | . . . . . 4 10 21 60 . 1 Terrain Destroyed 357 | 7 . 11 . 1 7 89 85 156 . 1 Melee 13 | . . . . . 4 8 . . . 1 Projectile 14 | . . . . 1 3 10 . . . . AOE 330 | 7 . 11 . . . 71 85 156 . . Terrain Rammed . | . . . . . . . . . . . Walls Destroyed . | . . . . . . . . . . . Machines Disabled . | . . . . . . . . . . . Actions | -11 -10 -10 -10 -9 -8 -7 -7 -7 -7 -6 --------- Run | Scr Mat Min Exi Min Mat Fac Low Low Dat Pro Total 6985 | 97 113 587 272 949 871 2160 1144 308 186 298 Wait 730 | 31 . 5 . 55 124 328 153 3 29 2 Move 5745 | 41 111 559 259 885 665 1619 922 279 137 268 Hop 1 | . . . . . . . . . 1 . Pick Up 59 | 1 . 5 2 3 17 25 2 1 3 . Fast Attach 34 | 2 . . 1 2 6 12 5 . 4 2 Attach 24 | 1 . . . . 3 12 1 1 4 2 Detach 9 | . . . . . 2 2 . . 2 3 Swap 68 | . 1 2 . 1 17 36 11 . . . Drop 71 | 4 1 . 6 3 18 28 8 1 1 1 Fire 142 | 17 . 16 . . 3 59 28 19 . . Melee 69 | . . . . . 11 35 5 3 5 10 Ram . | . . . . . . . . . . . Kick . | . . . . . . . . . . . Crush 9 | . . . . . 5 4 . . . . Escape Stasis 1 | . . . . . . . . 1 . . Rewire . | . . . . . . . . . . . Trap 23 | . . . 4 . . . 9 . . 10 Miscellaneous . | . . . . . . . . . . . Route ------- -11/Scrapyard -10/Materials -10/Mines (discovered 3 exits: [*Mat x2] / *Exi) -10/Exiles -9/Mines (discovered 2 exits: *Mat x2) -8/Materials (discovered 3 exits: *Fac x3) -7/Factory (discovered 2 exits: *Fac / *Low) -7/Lower Caves -7/Lower Caves -7/Data Miner -6/Proximity Caves (discovered 1 exit: Fac) History --------- Turn | Location | Event 1 | -11/Scrapyard | Discovered new exit (range 3) 128 | -11/Scrapyard | Entered Materials 234 | -10/Materials | Discovered new exit (range 6) 239 | -10/Materials | Entered Mines 262 | -10/Mines | Deemed a non-threat by the Exiles lab entrance 262 | -10/Mines | Discovered new exit (range 5) 310 | -10/Mines | Build established: Mutant 361 | -10/Mines | Learned location of 1 exit from Materials 380 | -10/Mines | Discovered new exit (range 6) 713 | -10/Mines | Found a hidden stash of uninstalled traps 740 | -10/Mines | Discovered new exit (range 7) 857 | -10/Mines | Entered Exiles 883 | -10/Exiles | Met 8R-AWN 900 | -10/Exiles | Met EX-HEX 928 | -10/Exiles | Met EX-BIN 939 | -10/Exiles | Aligned with FarCom system 940 | -10/Exiles | Given EX-Vault access code 981 | -10/Exiles | Opened EX-Vault 989 | -10/Exiles | Found AWS/Thermal 995 | -10/Exiles | Found Longsword +1 1015 | -10/Exiles | Warned to stay clear of 0b10 Research branches 1043 | -10/Exiles | Met EX-DEC 1115 | -10/Exiles | Discovered new exit (range 14) 1127 | -10/Exiles | Stole two prototypes: AWS/Thermal, Longsword +1 1127 | -10/Exiles | Entered Mines 1139 | -9/Mines | Learned location of Zion (-6) 1161 | -9/Mines | Received a Rocket Launcher from a helpful Derelict 1186 | -9/Mines | Discovered new exit (range 12) 1205 | -9/Mines | Learned Materials stockpile data 1232 | -9/Mines | Learned Materials emergency access door positions 1416 | -9/Mines | Build established: Skirmisher 1680 | -9/Mines | Assembled infested the area 1685 | -9/Mines | Assisted by a Guerilla fighting off Assembled 1836 | -9/Mines | Discovered new exit (range 9) 2140 | -9/Mines | Entered Materials 2140 | -8/Materials | Evolved 4 slots: Propulsion x1, Utility x2, Weapon x1 2141 | -8/Materials | Identified exit to Factory 3477 | -8/Materials | Entered Factory 3477 | -7/Factory | Evolved 2 slots: Propulsion x2 3479 | -7/Factory | FarCom data flow suspended 4040 | -7/Factory | Discovered new exit (range 6) 4047 | -7/Factory | Identified exit to Factory 4781 | -7/Factory | Fabricated Imp. VTOL Module (x1) 5077 | -7/Factory | First assault squad dispatched 5659 | -7/Factory | Lost 4 parts (1u3w) 5671 | -7/Factory | Destroyed 8 combat bots 5894 | -7/Factory | Build established: Mutant 6327 | -7/Factory | Fabricated Imp. Antigrav System (x2) 6577 | -7/Factory | Discovered new exit (range 6) 6583 | -7/Factory | Identified exit to Lower Caves 6589 | -7/Factory | Entered Lower Caves 6589 | -7/Lower Caves | Spotted B-75 Beast 6800 | -7/Lower Caves | Attracted the attention of an 0b10 checkpoint 7446 | -7/Lower Caves | Destroyed B-75 Beast 7776 | -7/Lower Caves | Build established: Scavenger-Mutant 7792 | -7/Lower Caves | Learned Factory terminal intel 7796 | -7/Lower Caves | Acquired the password to a Derelict Tinkerer's latest research 8124 | -7/Lower Caves | Learned Factory terminal intel 8133 | -7/Lower Caves | Discovered new exit (range 3) 8134 | -7/Lower Caves | Identified exit to Lower Caves 8135 | -7/Lower Caves | Entered another Lower Caves area 8140 | -7/Lower Caves | Encountered a Warlord checkpoint 8248 | -7/Lower Caves | Learned location of 1 exit from Proximity Caves 8458 | -7/Lower Caves | Spotted YE-M1O(f) 8459 | -7/Lower Caves | Encountered a Master Thief 8462 | -7/Lower Caves | Spotted 64-EDK(f) 8463 | -7/Lower Caves | Encountered a Master Thief 8463 | -7/Lower Caves | Spotted BY-10Y(f) 8463 | -7/Lower Caves | Longsword +1 stolen by Master Thief 8464 | -7/Lower Caves | Encountered a Master Thief 8464 | -7/Lower Caves | Spotted OC-O9Y(f) 8465 | -7/Lower Caves | Encountered a Master Thief 8465 | -7/Lower Caves | Spotted DD-EWR(f) 8466 | -7/Lower Caves | Encountered a Master Thief 8469 | -7/Lower Caves | Lgt. Antimatter Reactor stolen by Master Thief 8470 | -7/Lower Caves | Destroyed BY-10Y(f) 8476 | -7/Lower Caves | Remote Force Field stolen by Master Thief 8477 | -7/Lower Caves | Imp. Medium Treads stolen by Master Thief 8484 | -7/Lower Caves | Destroyed OC-O9Y(f) 8501 | -7/Lower Caves | Crushed by falling debris 8502 | -7/Lower Caves | Core integrity fell below 50% 8518 | -7/Lower Caves | Discovered new exit (range 12) 8536 | -7/Lower Caves | Identified exit to Data Miner 8537 | -7/Lower Caves | Entered Data Miner 8537 | -7/Data Miner | Released all parts (9) 8537 | -7/Data Miner | Discovered new exit (range 6) 8588 | -7/Data Miner | Met Data Miner 8598 | -7/Data Miner | Learned location of Section 7 (-2) 8598 | -7/Data Miner | Acquired the access code to Warlord's prototype stash 8601 | -7/Data Miner | Received God Mode back door access code from Data Miner 8618 | -7/Data Miner | Destroyed Data Miner 8621 | -7/Data Miner | Interfaced with the Data Conduit 8623 | -7/Data Miner | Found Prototype Hackware 8625 | -7/Data Miner | Found Prototype Hackware 8644 | -7/Data Miner | Entered Proximity Caves 8770 | -6/Proximity Caves | Core integrity fell below 20% 8770 | -6/Proximity Caves | System corruption reached 10% 8800 | -6/Proximity Caves | Lost 4 parts (1p1n1u1w) 8825 | -6/Proximity Caves | Destroyed by G-50 Soldier with Heavy Laser Last Messages --------------- 08769_ Dirty Bomb Trap short circuited. 08769_ Fire Trap short circuited. 08769_ Dirty Bomb Trap short circuited. 08769_ Fire Trap short circuited. 08769_ An explosion rips through the floor. 08769_ Burning plasma bursts from the floor. 08769_ An explosion rips through the floor. 08769_ Lgt. Deuterium Engine destroyed. 08769_ Greatsword destroyed. 08769_ Burning plasma bursts from the floor. 08769_ An explosion rips through the floor. 08769_ Fire Trap short circuited. 08769_ Dirty Bomb Trap short circuited. 08769_ Imp. VTOL Module destroyed. 08769_ Adv. Sensor Array destroyed. 08769_ An explosion rips through the floor. 08769_ Burning plasma bursts from the floor. 08776_ Acquired Lyr. Light Armor Plating. 08781_ System corrupted: Energy discharge (-15). 08825_ OXTHCJA|OSESQRE1NW/HOT#JSSJH:YO P9JX9VGP Map ----- +----------------------------------------------------+ | ?????????????????????????????????????????????????? | | ?????????????????????????????????????????????????? | | ?????????????????????????????????????????????????? | | ?????????????????????????????????????????????????? | | ?????????????????????????????????????????????????? | | ?????????????????????????????????????????????????? | | ?????????????????????????????????????????????????? | | ?????????????????????????????????????????????????? | | ???????????????????????????? ???????????????????? | | ???????????????????????????? ????????????????? | | ???????????????????????????? ??????????????? | | ???????????????????????????? ???????????????? | | ?????????????????????????### #???????????????? | | ?????????????????????????# ##??????????????? | | ?????????????????????????# #??????????????? | | ???????????#?????######??# #??????????????? | | ???????????# ????? ### gg #??????????????? | | ??????????## ???? g g #??????????????? | | ??????????# ????# #???????????????? | | ??????????# #### #????????????????? | | ????????????# # #??????????????????? | | ?????????????# #???????????????????? | | ?????????????????# ###?????????????????? | | ?????????????????## ## #?????????????????? | | ??????????????????#### ## $##?????????????????? | | ?????????????????????# ;@ ##??????????????????? | | ???????#????????????## ### ##???????????????????? | | ???????# ??????????## #?###????????????????????? | | ???????# ????????## #????????????????????????? | | ???????# ??????### #????????????????????????? | | ???????# ????## #????????????????????????? | | ????????# ???## ##????????????????????????? | | ????????# #?## ##?????????????????????????? | | ?????????# ## ####??????????????????????????? | | ?????????# ##?????????????????????????????? | | ?????????# ##??????????????????????????????? | | ?????????## #???????????????????????????????? | | ??????????## #???????????????????????????????? | | ???????###### ##???????????????????????????????? | | #???#### ## ######???????????????????????????? | | ##### ##??????????????????????????? | | ##?????????????????????????? | | # ### ##????????????????????????? | | ### ## ### #????????????????????????? | | ### ### ### ## #????????????????????????? | | ### ## ##?### ##??###????????????????????????? | | ## #????# ##??????????????????????????????? | | ## #????# #???????????????????????????????? | | ### ## #????# #???#####???????????????????????? | | ??# #???## #??## ##??????????????????????? | +----------------------------------------------------+ Best States ------------- Heat Dissipation 34 Coolant Potential 65 Energy Generation 16 Energy Capacity 290 Matter Stores 300 Matter Capacity 300 Sight Range 16 Robot Scan Range 20 Terrain Scan Range 16 Terrain Scan Density 10 Armor Coverage 300 Evasion (%) 63 Targeting Accuracy 8 Recoil Reduction 5 Item Schematics ----------------- Imp. VTOL Module | -8/Materials | Scanalyzed Lyr. Light Armor Plating | -8/Materials | Scanalyzed Imp. Signal Interpreter | -8/Materials | Scanalyzed Lrn. Sensor Array | -7/Factory | Scanalyzed Combat Drone Bay | -7/Data Miner | Free Lgt. Regenerative Plating | -7/Data Miner | Free Exp. Terrain Scanner | -7/Data Miner | Free Exp. Targeting Computer | -7/Data Miner | Free Tactical Coordination Suite | -7/Data Miner | Free Mni. Smartbomb Launcher | -7/Data Miner | Free Robot Schematics ------------------ S-27 Virus | -7/Data Miner | Free G-50 Soldier | -7/Data Miner | Free G-67 Veteran | -7/Data Miner | Free L-41 Fighter | -7/Data Miner | Free X-72 Disruptor | -7/Data Miner | Free P-70 Sage | -7/Data Miner | Free I-36 Angel | -7/Data Miner | Free Fabricated ------------ Imp. VTOL Module | x1 | -7/Factory Imp. Antigrav System | x2 | -7/Factory | Preloaded Alien Tech Used ----------------- None Achievements -------------- None Challenges ------------ None Game ------ Seed ExplosiveVariableScreen Manual? 0 Play Time 01:25:17 Cumulative 236.9 hours Start 2021.06.22 @ 15:16:11 End 2021.06.22 @ 16:56:30 Sessions 1 Manual Loads 0 Difficulty Rogue Special Mode None Game No. 170 Rogue 170 Adventurer 0 Explorer 0 Win Type - Total 4 Types 4/0/0/0/0/0/0/0/0 Lore% 49 Gallery% 71 Achievement% 55 Wizard Run 0 Options --------- ASCII 0 Keyboard 0 Movement Numpad Keybinds 0 Fullscreen 2 Font 18/TerminusBold Map View 76x50 Tactical HUD 1 Map Filters NONE Filters NONE Steam 1 RUN: d46b86eb-8fa6-4a78-bc10-e470f4aac31a